[Event "RUS-ch Blitz Women 2018"]
[Site "Sochi"]
[Date "2018.10.07"]
[Round "10"]
[White "Vinokur, Yuliya"]
[Black "Ambartsumova, Karina"]
[Result "1-0"]
[ECO "A53"]
[WhiteElo "2170"]
[BlackElo "2379"]
[Annotator "NA"]
[PlyCount "105"]
[EventDate "2018.10.07"]
[EventType "swiss"]
[EventCountry "RUS"]
[SourceTitle "playchess.com"]
[Source "ChessBase"]
[SourceQuality "1"]
[TimeControl "180+2"]

1. d4 {[%emt 0:00:00]} Nf6 {[%emt 0:00:00]} 2. c4 {[%emt 0:00:01]} d6 {[%emt 0:00:00]} 3. Nc3 {[%emt 0:00:02]} e5 {[%emt 0:00:00]} 4. e3 {[%emt 0:00:21]} Nbd7 {[%emt 0:00:08]} 5. Nf3 {[%emt 0:00:02]} g6 {[%emt 0:00:01]} 6. dxe5 $11 {[%emt 0:00:06]} dxe5 {[%emt 0:00:10]} 7. Be2 {[%emt 0:00:01]} Bg7 {[%emt 0:00:03]} 8. O-O {[%emt 0:00:02]} O-O {[%emt 0:00:01]} 9. b3 {[%emt 0:00:12]} Re8 {[%emt 0:00:15]} 10. Ba3 {[%emt 0:00:08]} b6 {[%emt 0:00:31]} 11. Qd2 {[%emt 0:00:16]} Bb7 {[%emt 0:00:07]} 12. Rfd1 {[%emt 0:00:01]} e4 {[%emt 0:00:27]} 13. Nd4 {[%emt 0:00:11]} Ne5 {[%emt 0:00:10]} 14. Ndb5 {[%emt 0:00:07]} Qc8 {[%emt 0:00:08]} 15. Nd5 {[%emt 0:00:46]} Nxd5 {[%emt 0:00:18]} 16. cxd5 {[%emt 0:00:13]} a6 {[%emt 0:00:15]} 17. Nc3 {[%emt 0:00:06]} Qf5 {[%emt 0:00:19]} 18. Rac1 {[%emt 0:00:05]} Rad8 19. Qc2 {[%emt 0:00:07]} Ng4 {[%emt 0:00:07]} 20. Bxg4 {[%emt 0:00:12]} Qxg4 {[%emt 0:00:16]} 21. Bb2 {[%emt 0:00:02]} b5 {[%emt 0:00:02]} 22. Ne2 Bxd5 {[%emt 0:00:08]} 23. Bxg7 {[%emt 0:00:11]} Kxg7 {[%emt 0:00:00]} 24. Qb2+ {[%emt 0:00:01]} Kg8 {[%emt 0:00:04]} 25. Rxc7 {[%emt 0:00:05]} Be6 {[%emt 0:00:05]} 26. Rcc1 {[%emt 0:00:04]} Qg5 {[%emt 0:00:05]} 27. Nf4 Bg4 28. Rd4 {[%emt 0:00:12]} Rxd4 {[%emt 0:00:05]} 29. Qxd4 {[%emt 0:00:02]} Qe5 {[%emt 0:00:05]} 30. Qxe5 {[%emt 0:00:06]} Rxe5 {[%emt 0:00:00]} 31. Rc6 {[%emt 0:00:01]} a5 {[%emt 0:00:01]} 32. h3 {[%emt 0:00:04]} Bd7 {[%emt 0:00:03]} 33. Rd6 {[%emt 0:00:03]} Be8 {[%emt 0:00:01]} 34. Rd8 {[%emt 0:00:03]} Kg7 {[%emt 0:00:01]} 35. Nd5 {[%emt 0:00:02]} Bc6 {[%emt 0:00:02]} 36. Nf4 {[%emt 0:00:06]} h6 {[%emt 0:00:04]} 37. Ne2 {[%emt 0:00:03]} Rc5 {[%emt 0:00:03]} 38. Nd4 {[%emt 0:00:01]} Bd5 {[%emt 0:00:02]} 39. Rb8 {[%emt 0:00:03]} b4 {[%emt 0:00:01]} 40. Rd8 {[%emt 0:00:03]} Bb7 {[%emt 0:00:06]} 41. Rd7 {[%emt 0:00:02]} Bd5 {[%emt 0:00:02]} 42. Kh2 {[%emt 0:00:01]} h5 {[%emt 0:00:01]} 43. Kg3 {[%emt 0:00:02]} Kf6 {[%emt 0:00:01]} 44. h4 {[%emt 0:00:04]} Kg7 {[%emt 0:00:03]} 45. Kf4 {[%emt 0:00:01]} Kf6 {[%emt 0:00:01]} 46. f3 {[%emt 0:00:05]} exf3 {[%emt 0:00:01]} 47. gxf3 {[%emt 0:00:02]} Kg7 {[%emt 0:00:02]} 48. e4 {[%emt 0:00:01]} Bc6 {[%emt 0:00:07]} 49. Ne6+ {[%emt 0:00:01]} Kf6 {[%emt 0:00:01]} 50. Nxc5 {[%emt 0:00:01]} Bxd7 {[%emt 0:00:02]} 51. Nxd7+ {[%emt 0:00:02]} Ke6 {[%emt 0:00:01]} 52. Nc5+ Kd6 53. Nb7+ {[%emt 0:00:01]} 1-0

[Event "RUS-ch Blitz Women 2018"]
[Site "Sochi"]
[Date "2018.10.07"]
[Round "10"]
[White "Vasilevich, Irina"]
[Black "Borisova, Ekaterina"]
[Result "1-0"]
[ECO "A01"]
[WhiteElo "2160"]
[BlackElo "2256"]
[Annotator "NA"]
[PlyCount "61"]
[EventDate "2018.10.07"]
[EventType "swiss"]
[EventCountry "RUS"]
[SourceTitle "playchess.com"]
[Source "ChessBase"]
[SourceQuality "1"]
[TimeControl "180+2"]

1. b3 {[%emt 0:00:00]} d5 {[%emt 0:00:02]} 2. Bb2 {[%emt 0:00:00]} Bg4 {[%emt 0:00:00]} 3. h3 {[%emt 0:00:03]} Bf5 {[%emt 0:00:04]} 4. e3 {[%emt 0:00:03]} Nd7 {[%emt 0:00:04]} 5. d3 {[%emt 0:00:02]} e5 {[%emt 0:00:06]} 6. Nd2 {[%emt 0:00:01]} Ngf6 {[%emt 0:00:02]} 7. Be2 {[%emt 0:00:02]} Bd6 {[%emt 0:00:01]} 8. a3 {[%emt 0:00:01]} a5 {[%emt 0:00:02]} 9. Ngf3 {[%emt 0:00:05]} O-O {[%emt 0:00:03]} 10. g4 {[%emt 0:00:01]} Bg6 {[%emt 0:00:01]} 11. Rg1 {[%emt 0:00:07]} e4 {[%emt 0:00:26]} 12. dxe4 {[%emt 0:00:08]} dxe4 {[%emt 0:00:02]} 13. Nh4 {[%emt 0:00:12]} Bh2 {[%emt 0:00:17]} 14. Rg2 {[%emt 0:00:10]} Bd6 {[%emt 0:00:36]} 15. Nxg6 {[%emt 0:00:04]} fxg6 {[%emt 0:00:02]} 16. g5 {[%emt 0:00:06]} Nd5 {[%emt 0:00:07]} 17. Nxe4 {[%emt 0:00:03]} N7b6 {[%emt 0:00:08]} 18. c4 {[%emt 0:00:10]} Qe7 {[%emt 0:00:43]} 19. Nxd6 {[%emt 0:00:07]} Nxe3 {[%emt 0:00:03]} 20. fxe3 {[%emt 0:00:06]} cxd6 {[%emt 0:00:01]} 21. Qd4 {[%emt 0:00:08]} Nd7 {[%emt 0:00:01]} 22. O-O-O {[%emt 0:00:05]} Ra6 {[%emt 0:00:01]} 23. Kb1 {[%emt 0:00:47]} Nc5 {[%emt 0:00:12]} 24. Ka2 {[%emt 0:00:07]} a4 {[%emt 0:00:12]} 25. b4 {[%emt 0:00:02]} Nb3 {[%emt 0:00:01]} 26. Qd5+ {[%emt 0:00:03]} Kh8 {[%emt 0:00:01]} 27. c5 {[%emt 0:00:10]} Rc6 {[%emt 0:00:07]} 28. cxd6 {[%emt 0:00:04]} Qd8 {[%emt 0:00:05]} 29. Bb5 {[%emt 0:00:05]} Rc8 {[%emt 0:00:05]} 30. Bxa4 {[%emt 0:00:04]} Rf5 {[%emt 0:00:03]} 31. Qxb3 {[%emt 0:00:04]} 1-0

[Event "RUS-ch Blitz Women 2018"]
[Site "Sochi"]
[Date "2018.10.07"]
[Round "10"]
[White "Sukhareva, Evgeniya"]
[Black "Charochkina, Daria"]
[Result "0-1"]
[ECO "A81"]
[WhiteElo "2125"]
[BlackElo "2344"]
[Annotator "NA"]
[PlyCount "60"]
[EventDate "2018.10.07"]
[EventType "swiss"]
[EventCountry "RUS"]
[SourceTitle "playchess.com"]
[Source "ChessBase"]
[SourceQuality "1"]
[TimeControl "180+2"]

1. d4 {[%emt 0:00:00]} f5 {[%emt 0:00:00]} 2. g3 {[%emt 0:00:04]} Nf6 {[%emt 0:00:00]} 3. Bg2 e6 4. c4 {[%emt 0:00:03]} d5 {[%emt 0:00:01]} 5. Nc3 {[%emt 0:00:02]} c6 {[%emt 0:00:00]} 6. b3 {[%emt 0:00:16]} Ne4 {[%emt 0:00:23]} 7. Nxe4 {[%emt 0:00:09]} dxe4 {[%emt 0:00:06]} 8. e3 {[%emt 0:00:02]} Bd6 {[%emt 0:00:14]} 9. Ne2 {[%emt 0:00:05]} O-O {[%emt 0:00:01]} 10. O-O {[%emt 0:00:10]} Nd7 {[%emt 0:00:12]} 11. Bb2 {[%emt 0:00:20]} Nf6 {[%emt 0:00:01]} 12. f3 {[%emt 0:00:08]} exf3 {[%emt 0:00:06]} 13. Bxf3 {[%emt 0:00:01]} Qe7 {[%emt 0:00:01]} 14. Bg2 {[%emt 0:00:09]} Bd7 {[%emt 0:00:07]} 15. Qc2 {[%emt 0:00:03]} e5 {[%emt 0:00:08]} 16. Rae1 {[%emt 0:00:05]} e4 {[%emt 0:00:12]} 17. Bh3 {[%emt 0:00:14]} Nh5 {[%emt 0:00:08]} 18. Kh1 {[%emt 0:00:25]} Qg5 {[%emt 0:00:02]} 19. Nf4 {[%emt 0:00:03]} Qh6 {[%emt 0:00:07]} 20. Qg2 {[%emt 0:01:14]} Rae8 {[%emt 0:00:02]} 21. Rg1 {[%emt 0:00:03]} g5 {[%emt 0:00:04]} 22. Nxh5 {[%emt 0:00:02]} Qxh5 {[%emt 0:00:01]} 23. Qf1 {[%emt 0:00:04]} g4 {[%emt 0:00:09]} 24. Bg2 {[%emt 0:00:03]} Bxg3 {[%emt 0:00:02]} 25. h3 {[%emt 0:00:02]} f4 {[%emt 0:00:06]} 26. exf4 {[%emt 0:00:01]} Qh4 {[%emt 0:00:23]} 27. Re3 {[%emt 0:00:02]} Rxf4 {[%emt 0:00:13]} 28. Qe2 {[%emt 0:00:01]} Rf2 {[%emt 0:00:01]} 29. Qe1 {[%emt 0:00:03]} gxh3 {[%emt 0:00:23]} 30. Bxe4 {[%emt 0:00:01]} Rh2# {[%emt 0:00:03]} 0-1

[Event "RUS-ch Blitz Women 2018"]
[Site "Sochi"]
[Date "2018.10.07"]
[Round "10"]
[White "Kabanova, Ekaterina"]
[Black "Bivol, Alina"]
[Result "1-0"]
[ECO "A15"]
[WhiteElo "2082"]
[BlackElo "2403"]
[Annotator "NA"]
[PlyCount "81"]
[EventDate "2018.10.07"]
[EventType "swiss"]
[EventCountry "RUS"]
[SourceTitle "playchess.com"]
[Source "ChessBase"]
[SourceQuality "1"]
[TimeControl "180+2"]

1. c4 {[%emt 0:00:00]} Nf6 {[%emt 0:00:00]} 2. Nf3 {[%emt 0:00:01]} g6 {[%emt 0:00:00]} 3. b3 {[%emt 0:00:01]} Bg7 {[%emt 0:00:02]} 4. Bb2 {[%emt 0:00:00]} O-O {[%emt 0:00:02]} 5. e3 {[%emt 0:00:02]} c6 {[%emt 0:00:14]} 6. Be2 {[%emt 0:00:09] A15: English Opening: 1...Nf6} d5 {[%emt 0:00:01]} 7. d3 {[%emt 0:00:02]} (7. O-O dxc4 8. bxc4 c5 9. d4 cxd4 10. exd4 e6 11. Nc3 Nc6 12. Ba3 Re8 13. Nb5 Ne4 14. Qd3 a6 15. Qxe4 axb5 {0-1 (72) Radjabov,T (2734)-Aronian,L (2797) Beijing 2014}) 7... Re8 {[%emt 0:00:10]} 8. Qc2 {[%emt 0:00:01]} Nbd7 {[%emt 0:00:02]} 9. Nbd2 {[%emt 0:00:01]} e5 {[%emt 0:00:02]} 10. Rc1 $146 {[%emt 0:00:01]} ({Predecessor:} 10. cxd5 Nxd5 11. a3 {½-½ (42) Sobeck,G (2080)-Medunova,V (2118) Siebenlehn 2012}) 10... e4 {[%emt 0:00:12]} 11. dxe4 {[%emt 0:00:01]} dxe4 {[%emt 0:00:08]} 12. Nd4 {[%emt 0:00:16]} Nc5 {[%emt 0:00:15]} 13. b4 {[%emt 0:00:06]} Nd3+ {[%emt 0:00:01]} 14. Bxd3 {[%emt 0:00:05]} exd3 {[%emt 0:00:01]} 15. Qxd3 {[%emt 0:00:03]} a5 {[%emt 0:00:01]} 16. a3 {[%emt 0:00:29]} axb4 {[%emt 0:00:01]} 17. axb4 {[%emt 0:00:01]} b6 {[%emt 0:00:17]} 18. c5 {[%emt 0:00:06]} bxc5 {[%emt 0:00:07]} 19. bxc5 {[%emt 0:00:02]} Ng4 {[%emt 0:00:23]} 20. O-O {[%emt 0:00:10]} Qc7 {[%emt 0:00:01]} 21. g3 {[%emt 0:00:33]} Ne5 {[%emt 0:00:01]} 22. Qc2 {[%emt 0:00:13]} Ba6 {[%emt 0:00:01]} 23. Rfd1 {[%emt 0:00:02]} Reb8 {[%emt 0:00:34]} 24. Ra1 {[%emt 0:00:12]} Bd3 {[%emt 0:00:04]} 25. Qc3 {[%emt 0:00:07]} Rxa1 {[%emt 0:00:08]} 26. Rxa1 {[%emt 0:00:03]} Bb5 {[%emt 0:00:18]} 27. Qc2 {[%emt 0:00:12]} h5 {[%emt 0:00:06]} 28. h4 {[%emt 0:00:02]} Ng4 {[%emt 0:00:08]} 29. N2f3 {[%emt 0:00:09]} Rd8 {[%emt 0:00:21]} 30. Nxb5 {[%emt 0:00:02]} cxb5 {[%emt 0:00:00]} 31. Bxg7 {[%emt 0:00:01]} Kxg7 {[%emt 0:00:01]} 32. Qb2+ {[%emt 0:00:01]} Kg8 {[%emt 0:00:05]} 33. Qxb5 {[%emt 0:00:04]} Nxe3 {[%emt 0:00:03]} 34. Qb6 {[%emt 0:00:04]} Qe7 {[%emt 0:00:12]} 35. fxe3 {[%emt 0:00:05]} Qxe3+ $14 {[%emt 0:00:00]} 36. Kg2 {[%emt 0:00:05]} Qe2+ {[%emt 0:00:01]} 37. Kh3 {[%emt 0:00:01]} Rd3 {[%emt 0:00:02]} 38. Ra8+ {[%emt 0:00:06]} Kg7 {[%emt 0:00:02]} 39. c6 {[%emt 0:00:30]} Qf1+ {[%emt 0:00:05]} 40. Kh2 {[%emt 0:00:02]} Qxf3 {[%emt 0:00:02]} 41. Qb2+ {[%emt 0:00:01]} 1-0

[Event "RUS-ch Blitz Women 2018"]
[Site "Sochi"]
[Date "2018.10.07"]
[Round "11"]
[White "Bivol, Alina"]
[Black "Borisova, Ekaterina"]
[Result "1-0"]
[ECO "A05"]
[WhiteElo "2403"]
[BlackElo "2256"]
[Annotator "NA"]
[PlyCount "45"]
[EventDate "2018.10.07"]
[EventType "swiss"]
[EventCountry "RUS"]
[SourceTitle "playchess.com"]
[Source "ChessBase"]
[SourceQuality "1"]
[TimeControl "180+2"]

1. Nf3 {[%emt 0:00:00]} Nf6 {[%emt 0:00:00]} 2. g3 {[%emt 0:00:00]} g6 {[%emt 0:00:00]} 3. Bg2 {[%emt 0:00:01]} Bg7 {[%emt 0:00:00]} 4. d4 {[%emt 0:00:01]} d5 {[%emt 0:00:00]} 5. O-O {[%emt 0:00:01]} O-O {[%emt 0:00:01]} 6. Nbd2 {[%emt 0:00:01]} b6 {[%emt 0:00:08]} 7. c4 {[%emt 0:00:03]} c6 {[%emt 0:00:03]} 8. b3 {[%emt 0:00:02]} Bb7 {[%emt 0:00:01]} 9. Bb2 {[%emt 0:00:01]} Nbd7 {[%emt 0:00:02]} 10. Ne5 {[%emt 0:00:05]} Rc8 {[%emt 0:00:18]} 11. e3 {[%emt 0:00:06]} Ne8 {[%emt 0:00:07]} 12. Rc1 {[%emt 0:00:05]} f6 $16 {[%emt 0:00:36]} ({Black should play} 12... Nd6 $14) 13. Nxd7 {[%emt 0:00:02]} Qxd7 {[%emt 0:00:01]} 14. e4 {[%emt 0:00:05]} dxe4 {[%emt 0:00:06]} 15. Nxe4 {[%emt 0:00:03]} f5 {[%emt 0:00:03]} 16. Ng5 {[%emt 0:00:06]} h6 {[%emt 0:00:04]} 17. Nf3 {[%emt 0:00:01]} c5 {[%emt 0:00:04]} 18. Re1 {[%emt 0:00:14]} Bxf3 {[%emt 0:00:13]} 19. Bxf3 {[%emt 0:00:03]} cxd4 {[%emt 0:00:02]} 20. Bd5+ {[%emt 0:00:05]} Kh7 {[%emt 0:00:02]} 21. Be6 {[%emt 0:00:01]} Qd8 {[%emt 0:00:04]} 22. Bxc8 {[%emt 0:00:02]} Qxc8 {[%emt 0:00:01]} 23. Rxe7 1-0

[Event "RUS-ch Blitz Women 2018"]
[Site "Sochi"]
[Date "2018.10.07"]
[Round "11"]
[White "Gritsayeva, Oksana"]
[Black "Shuvalova, Polina"]
[Result "1-0"]
[ECO "B11"]
[WhiteElo "2378"]
[BlackElo "2421"]
[Annotator "NA RC"]
[PlyCount "113"]
[EventDate "2018.10.07"]
[EventType "swiss"]
[EventCountry "RUS"]
[SourceTitle "playchess.com"]
[Source "ChessBase"]
[SourceQuality "1"]
[TimeControl "180+2"]

1. e4 {[%emt 0:00:00]} c6 {[%emt 0:00:00]} 2. Nc3 {[%emt 0:00:00]} d5 {[%emt 0:00:01]} 3. Nf3 {[%emt 0:00:02]} Bg4 {[%emt 0:00:01]} 4. Be2 {[%emt 0:00:00]} e6 {[%emt 0:00:03]} 5. O-O {[%emt 0:00:05]} Nf6 {[%emt 0:00:02]} 6. h3 {[%emt 0:00:03]} Bxf3 {[%emt 0:00:02]} 7. Bxf3 {[%emt 0:00:01]} Be7 {[%emt 0:00:02]} 8. d3 {[%emt 0:00:06]} O-O {[%emt 0:00:03]} 9. Qe2 {[%emt 0:00:05]} Re8 {[%emt 0:00:17]} 10. g3 {[%emt 0:00:04]} Qc7 {[%emt 0:00:13]} 11. Bg2 {[%emt 0:00:05]} Nbd7 {[%emt 0:00:09]} 12. Bf4 $11 {[%emt 0:00:16]} e5 {[%emt 0:00:02]} 13. Bd2 {[%emt 0:00:10]} d4 {[%emt 0:00:12]} 14. Nd1 {[%emt 0:00:08]} Bd6 {[%emt 0:00:07]} 15. Kh1 {[%emt 0:00:27]} c5 {[%emt 0:00:02]} 16. a4 {[%emt 0:00:19]} Nf8 {[%emt 0:00:15]} 17. b3 {[%emt 0:00:14]} b6 {[%emt 0:00:05]} 18. Nb2 {[%emt 0:00:05]} Qd7 {[%emt 0:00:21]} 19. Nc4 {[%emt 0:00:03]} Bc7 {[%emt 0:00:01]} 20. Kh2 {[%emt 0:00:12]} Rab8 {[%emt 0:00:03]} 21. f4 {[%emt 0:00:12]} exf4 {[%emt 0:00:14]} 22. gxf4 {[%emt 0:00:04]} Ng6 {[%emt 0:00:02]} 23. Qf2 {[%emt 0:00:12]} a6 {[%emt 0:00:19]} 24. e5 {[%emt 0:00:18]} Nd5 {[%emt 0:00:10]} 25. Qf3 {[%emt 0:00:04]} Rbd8 {[%emt 0:00:12]} 26. Qg4 {[%emt 0:00:07]} b5 {[%emt 0:00:09]} 27. axb5 {[%emt 0:00:02]} axb5 {[%emt 0:00:02]} 28. Qxd7 {[%emt 0:00:15]} Rxd7 {[%emt 0:00:01]} 29. Nd6 {[%emt 0:00:08]} Bxd6 {[%emt 0:00:09]} 30. Bxd5 {[%emt 0:00:01]} Ne7 {[%emt 0:00:20]} 31. Be4 {[%emt 0:00:03]} Bc7 {[%emt 0:00:09]} 32. Ra7 {[%emt 0:00:04]} Red8 {[%emt 0:00:09]} 33. Rfa1 {[%emt 0:00:01]} g6 {[%emt 0:00:02]} 34. Rb7 {[%emt 0:00:04]} g5 {[%emt 0:00:01]} 35. Rxb5 {[%emt 0:00:04]} gxf4 {[%emt 0:00:02]} 36. Bxf4 {[%emt 0:00:03]} Ng6 {[%emt 0:00:04]} 37. Bxg6 {[%emt 0:00:01]} fxg6 {[%emt 0:00:01]} 38. Ra6 {[%emt 0:00:01]} Rf7 {[%emt 0:00:04]} 39. Bg3 {[%emt 0:00:02]} Rf5 {[%emt 0:00:04]} 40. Rxc5 {[%emt 0:00:02]} Bb8 {[%emt 0:00:01]} 41. Ra8 {[%emt 0:00:02]} Rdf8 {[%emt 0:00:02]} 42. Rb5 {[%emt 0:00:02]} Bc7 {[%emt 0:00:02]} 43. Rxf8+ {[%emt 0:00:01]} Kxf8 {[%emt 0:00:01]} 44. Rd5 {[%emt 0:00:02]} Ke7 {[%emt 0:00:01]} 45. Kg2 {[%emt 0:00:01]} Ke6 {[%emt 0:00:01]} 46. Rxd4 {[%emt 0:00:01]} Rf8 {[%emt 0:00:05]} 47. Re4 {[%emt 0:00:02]} Bb6 {[%emt 0:00:01]} 48. c4 {[%emt 0:00:02]} Rd8 {[%emt 0:00:01]} 49. b4 {[%emt 0:00:03]} Rxd3 {[%emt 0:00:01]} 50. c5 {[%emt 0:00:01]} Bc7 {[%emt 0:00:01]} 51. b5 {[%emt 0:00:02]} Rd2+ {[%emt 0:00:01]} 52. Kf3 {[%emt 0:00:02]} Rd3+ {[%emt 0:00:01]} 53. Re3 {[%emt 0:00:02]} Rd5 {[%emt 0:00:01]} 54. b6 {[%emt 0:00:02]} Bb8 {[%emt 0:00:02]} 55. Rc3 {[%emt 0:00:01]} Kd7 {[%emt 0:00:02]} 56. c6+ {[%emt 0:00:02]} Kc8 {[%emt 0:00:01]} 57. c7 {[%emt 0:00:02]} 1-0

[Event "RUS-ch Blitz Women 2018"]
[Site "Sochi"]
[Date "2018.10.07"]
[Round "11"]
[White "Voit, Daria"]
[Black "Ambartsumova, Karina"]
[Result "1-0"]
[ECO "A13"]
[WhiteElo "2352"]
[BlackElo "2379"]
[Annotator "NA"]
[PlyCount "135"]
[EventDate "2018.10.07"]
[EventType "swiss"]
[EventCountry "RUS"]
[SourceTitle "playchess.com"]
[Source "ChessBase"]
[SourceQuality "1"]
[TimeControl "180+2"]

1. Nf3 {[%emt 0:00:00]} Nf6 {[%emt 0:00:00]} 2. c4 {[%emt 0:00:00]} e6 {[%emt 0:00:11]} 3. g3 {[%emt 0:00:02]} d5 {[%emt 0:00:02]} 4. Bg2 {[%emt 0:00:01]} dxc4 {[%emt 0:00:01]} 5. Qa4+ {[%emt 0:00:02]} c6 {[%emt 0:00:03]} 6. Qxc4 {[%emt 0:00:01]} b5 {[%emt 0:00:01]} 7. Qc2 {[%emt 0:00:02]} Bb7 {[%emt 0:00:05]} 8. d4 {[%emt 0:00:02]} Nbd7 {[%emt 0:00:08]} 9. O-O {[%emt 0:00:02]} c5 {[%emt 0:00:26]} 10. Rd1 {[%emt 0:00:13]} Qb6 {[%emt 0:00:08]} 11. Nc3 {[%emt 0:00:15]} Be7 {[%emt 0:00:12]} 12. h3 {[%emt 0:00:08]} O-O {[%emt 0:00:10]} 13. Be3 {[%emt 0:00:01]} cxd4 {[%emt 0:00:16]} 14. Bxd4 {[%emt 0:00:02]} Bc5 {[%emt 0:00:03]} 15. Qd3 {[%emt 0:00:51]} a6 {[%emt 0:00:21]} 16. Bxc5 {[%emt 0:00:04]} Nxc5 {[%emt 0:00:05]} 17. Qe3 {[%emt 0:00:05]} Qc7 {[%emt 0:00:07]} 18. Rac1 {[%emt 0:00:02]} Qe7 {[%emt 0:00:26]} 19. Nxb5 {[%emt 0:00:11]} axb5 {[%emt 0:00:02]} 20. Qxc5 {[%emt 0:00:04]} Qxc5 {[%emt 0:00:01]} 21. Rxc5 {[%emt 0:00:01]} Rxa2 {[%emt 0:00:02]} 22. Rxb5 {[%emt 0:00:03]} Ba6 {[%emt 0:00:02]} 23. Rb6 {[%emt 0:00:04]} Bxe2 {[%emt 0:00:02]} 24. Rd2 {[%emt 0:00:04]} Bc4 {[%emt 0:00:09]} 25. Ne5 {[%emt 0:00:11]} Bd5 {[%emt 0:00:01]} 26. Ng4 {[%emt 0:00:12]} Bxg2 {[%emt 0:00:23]} 27. Nxf6+ {[%emt 0:00:02]} gxf6 {[%emt 0:00:01]} 28. Kxg2 {[%emt 0:00:02]} Rc8 {[%emt 0:00:04]} 29. Rb7 {[%emt 0:00:02]} f5 {[%emt 0:00:10]} 30. Rdd7 {[%emt 0:00:04]} Rc2 {[%emt 0:00:03]} 31. Rxf7 {[%emt 0:00:07]} Raxb2 {[%emt 0:00:01]} 32. Rg7+ {[%emt 0:00:02]} Kf8 {[%emt 0:00:01]} 33. Rxb2 {[%emt 0:00:03]} Rxb2 {[%emt 0:00:02]} 34. Rxh7 {[%emt 0:00:02]} Kg8 {[%emt 0:00:05]} 35. Re7 {[%emt 0:00:02]} Rb6 {[%emt 0:00:02]} 36. Kf3 {[%emt 0:00:06]} Kf8 {[%emt 0:00:01]} 37. Rd7 {[%emt 0:00:01]} Rb4 {[%emt 0:00:02]} 38. g4 {[%emt 0:00:11]} fxg4+ {[%emt 0:00:03]} 39. hxg4 {[%emt 0:00:01]} Rc4 {[%emt 0:00:03]} 40. Kg3 {[%emt 0:00:02]} Rc2 {[%emt 0:00:03]} 41. f4 {[%emt 0:00:02]} Rc4 {[%emt 0:00:03]} 42. g5 {[%emt 0:00:02]} Ra4 {[%emt 0:00:05]} 43. Rc7 {[%emt 0:00:06]} Rb4 {[%emt 0:00:02]} 44. Kf3 {[%emt 0:00:09]} Ra4 {[%emt 0:00:02]} 45. Ke3 {[%emt 0:00:02]} Rb4 {[%emt 0:00:01]} 46. Rd7 {[%emt 0:00:01]} Ra4 {[%emt 0:00:03]} 47. Rd4 {[%emt 0:00:02]} Ra1 {[%emt 0:00:02]} 48. Ke4 {[%emt 0:00:03]} Re1+ {[%emt 0:00:01]} 49. Kf3 {[%emt 0:00:01]} Kf7 {[%emt 0:00:02]} 50. Rd7+ {[%emt 0:00:17]} Kf8 {[%emt 0:00:06]} 51. Kg4 {[%emt 0:00:06]} Re4 {[%emt 0:00:01]} 52. Kf3 {[%emt 0:00:12]} Ra4 {[%emt 0:00:01]} 53. Ke3 {[%emt 0:00:01]} Rb4 {[%emt 0:00:01]} 54. Rd4 Rb1 55. Ke4 {[%emt 0:00:02]} Re1+ {[%emt 0:00:02]} 56. Kf3 {[%emt 0:00:02]} Kf7 {[%emt 0:00:01]} 57. Rd7+ {[%emt 0:00:01]} Kf8 {[%emt 0:00:01]} 58. g6 {[%emt 0:00:03]} Rf1+ {[%emt 0:00:06]} 59. Kg4 {[%emt 0:00:04]} Rg1+ {[%emt 0:00:02]} 60. Kh5 {[%emt 0:00:01]} Ke8 {[%emt 0:00:06]} 61. Rb7 {[%emt 0:00:02]} Kf8 {[%emt 0:00:00]} 62. Kh6 {[%emt 0:00:01]} Rh1+ {[%emt 0:00:04]} 63. Kg5 {[%emt 0:00:01]} Rf1 {[%emt 0:00:02]} 64. Rf7+ {[%emt 0:00:02]} Kg8 {[%emt 0:00:02]} 65. Re7 {[%emt 0:00:04]} Re1 {[%emt 0:00:03]} 66. Kf6 {[%emt 0:00:01]} Kf8 {[%emt 0:00:02]} 67. g7+ {[%emt 0:00:02]} Kg8 {[%emt 0:00:01]} 68. Re8+ {[%emt 0:00:01]} 1-0

[Event "RUS-ch Blitz Women 2018"]
[Site "Sochi"]
[Date "2018.10.07"]
[Round "11"]
[White "Dordzhieva, Dinara"]
[Black "Charochkina, Daria"]
[Result "1-0"]
[ECO "A06"]
[WhiteElo "2340"]
[BlackElo "2344"]
[Annotator "NA"]
[PlyCount "67"]
[EventDate "2018.10.07"]
[EventType "swiss"]
[EventCountry "RUS"]
[SourceTitle "playchess.com"]
[Source "ChessBase"]
[SourceQuality "1"]
[TimeControl "180+2"]

1. Nf3 {[%emt 0:00:00]} d5 {[%emt 0:00:00]} 2. g3 {[%emt 0:00:00]} Bg4 {[%emt 0:00:01]} 3. Bg2 {[%emt 0:00:01]} Nd7 {[%emt 0:00:00]} 4. d4 {[%emt 0:00:01]} Ngf6 {[%emt 0:00:02]} 5. h3 {[%emt 0:00:02]} Bxf3 {[%emt 0:00:07]} 6. Bxf3 {[%emt 0:00:01]} e5 {[%emt 0:00:01]} 7. dxe5 {[%emt 0:00:02]} Nxe5 {[%emt 0:00:01]} 8. Bg2 {[%emt 0:00:01]} c6 {[%emt 0:00:05]} 9. O-O {[%emt 0:00:02]} Be7 {[%emt 0:00:12]} 10. b3 {[%emt 0:00:01]} O-O {[%emt 0:00:03]} 11. Bb2 {[%emt 0:00:01]} Ng6 {[%emt 0:00:02]} 12. Nd2 {[%emt 0:00:03]} a5 {[%emt 0:00:01]} 13. a4 {[%emt 0:00:01]} Qc7 {[%emt 0:00:07]} 14. Nf3 {[%emt 0:00:02]} Rfe8 {[%emt 0:00:01]} 15. Nd4 {[%emt 0:00:03]} Bf8 {[%emt 0:00:04]} 16. Nf5 {[%emt 0:00:11]} Ne4 {[%emt 0:00:01]} 17. e3 {[%emt 0:00:20]} f6 {[%emt 0:00:19]} 18. Qe2 {[%emt 0:00:09]} Rad8 {[%emt 0:00:04]} 19. Rad1 {[%emt 0:00:01]} Kh8 {[%emt 0:00:05]} 20. h4 {[%emt 0:00:05]} Ne7 {[%emt 0:00:08]} 21. Nd4 {[%emt 0:00:02]} Nc8 {[%emt 0:00:31]} 22. h5 {[%emt 0:00:07]} Qe5 {[%emt 0:00:15]} 23. c4 {[%emt 0:00:06]} dxc4 {[%emt 0:00:19]} 24. Nxc6 {[%emt 0:00:02]} Qc7 {[%emt 0:01:00]} 25. Nxd8 {[%emt 0:00:15]} c3 {[%emt 0:00:01]} 26. Bxe4 {[%emt 0:00:03]} cxb2 {[%emt 0:00:04]} 27. Qxb2 {[%emt 0:00:07]} Rxe4 {[%emt 0:00:03]} 28. Qc1 {[%emt 0:00:35]} Qb8 {[%emt 0:00:15]} 29. Nf7+ {[%emt 0:00:21]} Kg8 {[%emt 0:00:01]} 30. Rd8 {[%emt 0:00:00]} Rg4 {[%emt 0:00:01]} 31. Kg2 {[%emt 0:00:14]} Kxf7 {[%emt 0:00:03]} 32. Rxc8 {[%emt 0:00:01]} Qe5 {[%emt 0:00:04]} 33. Rxf8+ {[%emt 0:00:09]} Kxf8 34. Qc8+ {[%emt 0:00:02]} 1-0